[Event "*** Titled Tuesday Blitz"]
[Site "Chess.com"]
[Date "2018.07.03"]
[Round "5"]
[White "PaulfromSPb"]
[Black "OparinGrigoriy"]
[Result "0-1"]
[WhiteElo "2516"]
[BlackElo "2886"]
[TimeControl "180+2"]
[EndTime "14:03:57 PDT"]
[Termination "OparinGrigoriy won by resignation"]

1. d4 {[%clk 0:03:01.9]} 1... Nf6 {[%clk 0:02:59.3]} 2. Bg5 {[%clk 0:03:02.7]}
2... e6 {[%clk 0:02:59.8]} 3. Nd2 {[%clk 0:03:03]} 3... h6 {[%clk 0:03:01.1]} 4.
Bh4 {[%clk 0:03:03.8]} 4... b6 {[%clk 0:02:59.8]} 5. e4 {[%clk 0:03:01.2]} 5...
Bb7 {[%clk 0:03:01]} 6. Bd3 {[%clk 0:03:02.2]} 6... d6 {[%clk 0:02:59.1]} 7. f4
{[%clk 0:02:55.3]} 7... g5 {[%clk 0:02:48]} 8. fxg5 {[%clk 0:02:52.3]} 8... Nh7
{[%clk 0:02:44.8]} 9. Qe2 {[%clk 0:02:40.6]} 9... hxg5 {[%clk 0:02:44.4]} 10.
Bf2 {[%clk 0:02:41.3]} 10... Nd7 {[%clk 0:02:43.6]} 11. O-O-O {[%clk 0:02:41.5]}
11... Bg7 {[%clk 0:02:43.8]} 12. h4 {[%clk 0:02:40.8]} 12... Qe7 {[%clk
0:02:42.3]} 13. hxg5 {[%clk 0:02:24.3]} 13... Nxg5 {[%clk 0:02:37.2]} 14. Rxh8+
{[%clk 0:02:24.4]} 14... Bxh8 {[%clk 0:02:39.1]} 15. Ngf3 {[%clk 0:02:24.9]}
15... Nxf3 {[%clk 0:02:34]} 16. Nxf3 {[%clk 0:02:22.1]} 16... O-O-O {[%clk
0:02:33.7]} 17. Ba6 {[%clk 0:02:19.7]} 17... Rg8 {[%clk 0:02:29]} 18. Bxb7+
{[%clk 0:02:16.6]} 18... Kxb7 {[%clk 0:02:30.9]} 19. g3 {[%clk 0:02:14.9]} 19...
Nb8 {[%clk 0:02:25.1]} 20. e5 {[%clk 0:02:13.2]} 20... Qd7 {[%clk 0:02:20]} 21.
d5 {[%clk 0:01:57.7]} 21... exd5 {[%clk 0:02:04.3]} 22. Rxd5 {[%clk 0:01:58.1]}
22... Qe6 {[%clk 0:01:54.6]} 23. c4 {[%clk 0:01:31.9]} 23... dxe5 {[%clk
0:01:47.8]} 24. Nd2 {[%clk 0:01:06.3]} 24... Nc6 {[%clk 0:01:47.3]} 25. Qf3
{[%clk 0:01:02.1]} 25... f5 {[%clk 0:01:44.9]} 26. Rb5 {[%clk 0:00:54.3]} 26...
a6 {[%clk 0:01:41.2]} 27. Rb3 {[%clk 0:00:54.7]} 27... e4 {[%clk 0:01:42.3]} 28.
Qe2 {[%clk 0:00:50.3]} 28... Nd4 {[%clk 0:01:36.4]} 29. Bxd4 {[%clk 0:00:48.1]}
29... Bxd4 {[%clk 0:01:38.3]} 30. Kc2 {[%clk 0:00:45.2]} 30... a5 {[%clk
0:01:36.2]} 31. Rb5 {[%clk 0:00:44.6]} 31... Rxg3 {[%clk 0:01:14.5]} 32. Nb3
{[%clk 0:00:44.2]} 32... Bg1 {[%clk 0:00:41]} 33. c5 {[%clk 0:00:37.6]} 33... a4
{[%clk 0:00:28.7]} 34. Na5+ {[%clk 0:00:32.3]} 34... Kc8 {[%clk 0:00:29.1]} 35.
cxb6 {[%clk 0:00:31.7]} 35... Bxb6 {[%clk 0:00:29.5]} 36. Nc4 {[%clk 0:00:30.9]}
36... Rg2 {[%clk 0:00:21]} 37. Nxb6+ {[%clk 0:00:31.4]} 37... Qxb6 {[%clk
0:00:22.1]} 38. Qxg2 {[%clk 0:00:32.3]} 38... Qxb5 {[%clk 0:00:23.4]} 39. Qg8+
{[%clk 0:00:33.7]} 39... Kb7 {[%clk 0:00:24]} 40. Qe6 {[%clk 0:00:30.8]} 40...
Qd3+ {[%clk 0:00:22.4]} 41. Kc1 {[%clk 0:00:31.4]} 41... e3 {[%clk 0:00:23.9]}
42. b3 {[%clk 0:00:29.3]} 42... a3 {[%clk 0:00:21.4]} 43. b4 {[%clk 0:00:18.8]}
43... Qd2+ {[%clk 0:00:22.1]} 0-1

[Event "*** Titled Tuesday Blitz"]
[Site "Chess.com"]
[Date "2018.07.03"]
[Round "5"]
[White "Quiet_Desperation"]
[Black "MatthewG-p4p"]
[Result "0-1"]
[WhiteElo "1863"]
[BlackElo "2675"]
[TimeControl "180+2"]
[EndTime "14:04:09 PDT"]
[Termination "MatthewG-p4p won by resignation"]

1. e4 {[%clk 0:03:01.9]} 1... e6 {[%clk 0:02:59.5]} 2. d4 {[%clk 0:03:02.6]}
2... d5 {[%clk 0:03:00.7]} 3. Nc3 {[%clk 0:03:03.1]} 3... Bb4 {[%clk 0:03:01.3]}
4. exd5 {[%clk 0:03:03.9]} 4... exd5 {[%clk 0:03:00.1]} 5. Nf3 {[%clk
0:03:05.1]} 5... Nf6 {[%clk 0:03:00.5]} 6. Bd3 {[%clk 0:03:06.2]} 6... O-O
{[%clk 0:03:01.9]} 7. O-O {[%clk 0:03:06.4]} 7... c6 {[%clk 0:03:02.8]} 8. h3
{[%clk 0:03:07.5]} 8... Re8 {[%clk 0:02:59.2]} 9. Bg5 {[%clk 0:03:07.8]} 9...
Nbd7 {[%clk 0:03:00.7]} 10. Ne2 {[%clk 0:03:06.5]} 10... Nf8 {[%clk 0:03:01.4]}
11. c3 {[%clk 0:03:07.5]} 11... Bd6 {[%clk 0:03:01.6]} 12. Ng3 {[%clk
0:02:54.7]} 12... Ng6 {[%clk 0:03:02.2]} 13. Nf5 {[%clk 0:02:51.7]} 13... Bf8
{[%clk 0:02:59.8]} 14. Re1 {[%clk 0:02:49.3]} 14... Be6 {[%clk 0:02:57.6]} 15.
Qd2 {[%clk 0:02:47.1]} 15... h6 {[%clk 0:02:55.9]} 16. Be3 {[%clk 0:02:38.8]}
16... Ne4 {[%clk 0:02:56.1]} 17. Nxh6+ {[%clk 0:02:32.9]} 17... gxh6 {[%clk
0:02:55.6]} 18. Qc1 {[%clk 0:02:33.9]} 18... Kh7 {[%clk 0:02:54.4]} 19. Ne5
{[%clk 0:02:33.3]} 19... f5 {[%clk 0:02:39.6]} 20. Nxg6 {[%clk 0:02:30.7]} 20...
Kxg6 {[%clk 0:02:40.5]} 21. f3 {[%clk 0:02:30.8]} 21... Nd6 {[%clk 0:02:37.5]}
22. Bf4 {[%clk 0:02:29]} 22... Bf7 {[%clk 0:02:34]} 23. g4 {[%clk 0:02:27.1]}
23... Rxe1+ {[%clk 0:02:29.6]} 24. Qxe1 {[%clk 0:02:25.2]} 24... Qf6 {[%clk
0:02:30.5]} 25. Qg3 {[%clk 0:02:12.9]} 25... Kh7 {[%clk 0:02:26.9]} 26. Be5
{[%clk 0:02:11.3]} 26... Qd8 {[%clk 0:02:27.7]} 27. h4 {[%clk 0:01:57]} 27... h5
{[%clk 0:02:12.4]} 28. gxf5 {[%clk 0:01:53.6]} 28... Qd7 {[%clk 0:01:56.5]} 29.
Qg5 {[%clk 0:01:38.6]} 29... Bh6 {[%clk 0:01:48.6]} 30. f6+ {[%clk 0:01:38.5]}
30... Ne4 {[%clk 0:01:49.9]} 31. Qg2 {[%clk 0:01:22]} 31... Rg8 {[%clk
0:01:46.9]} 32. Bg3 {[%clk 0:01:23.2]} 32... Bf4 {[%clk 0:01:38.4]} 33. Bxf4
{[%clk 0:01:22]} 33... Rxg2+ {[%clk 0:01:39.1]} 34. Kxg2 {[%clk 0:01:23.5]}
34... Qf5 {[%clk 0:01:35.8]} 35. Bg3 {[%clk 0:01:19.5]} 35... Qxf6 {[%clk
0:01:29.4]} 36. fxe4 {[%clk 0:01:16.5]} 36... dxe4 {[%clk 0:01:30.7]} 37. Bxe4+
{[%clk 0:01:17.4]} 37... Bg6 {[%clk 0:01:31.7]} 38. Bxg6+ {[%clk 0:01:18.5]}
38... Qxg6 {[%clk 0:01:32.3]} 39. Rf1 {[%clk 0:01:16.2]} 39... Qe4+ {[%clk
0:01:33.5]} 40. Kh2 {[%clk 0:01:07.2]} 40... Kg6 {[%clk 0:01:35.2]} 41. Rf2
{[%clk 0:01:08.2]} 41... a5 {[%clk 0:01:34]} 42. Rg2 {[%clk 0:00:58.1]} 42... a4
{[%clk 0:01:29.8]} 43. a3 {[%clk 0:00:58.4]} 43... Qd5 {[%clk 0:01:21.7]} 44.
Be5+ {[%clk 0:00:51.3]} 44... Kf5 {[%clk 0:01:22.5]} 45. Rg5+ {[%clk 0:00:48.1]}
45... Ke4 {[%clk 0:01:23.9]} 46. Rxh5 {[%clk 0:00:49.3]} 46... Qb3 {[%clk
0:01:24.9]} 47. Rg5 {[%clk 0:00:42.9]} 47... Qxb2+ {[%clk 0:01:24.3]} 48. Rg2
{[%clk 0:00:44]} 48... Qxc3 {[%clk 0:01:25]} 49. Rg3 {[%clk 0:00:32.2]} 49...
Qd2+ {[%clk 0:01:21.9]} 50. Kh3 {[%clk 0:00:31.5]} 50... Qe2 {[%clk 0:01:21.3]}
51. Rg4+ {[%clk 0:00:25.5]} 51... Kf5 {[%clk 0:01:19.6]} 52. Rf4+ {[%clk
0:00:25.6]} 52... Ke6 {[%clk 0:01:19.7]} 53. Rf6+ {[%clk 0:00:22.7]} 53... Kd5
{[%clk 0:01:20.7]} 54. Kg3 {[%clk 0:00:21.3]} 54... c5 {[%clk 0:01:19.1]} 55.
Rf4 {[%clk 0:00:20]} 55... Qe3+ {[%clk 0:01:16.8]} 56. Kg4 {[%clk 0:00:19.5]}
56... Qxa3 {[%clk 0:01:16.6]} 57. dxc5 {[%clk 0:00:20.1]} 57... Kxe5 {[%clk
0:01:17.5]} 58. h5 {[%clk 0:00:21.5]} 58... Qb3 {[%clk 0:01:12]} 59. h6 {[%clk
0:00:22]} 59... Qd1+ {[%clk 0:01:13.1]} 60. Kg5 {[%clk 0:00:22.8]} 60... Qd2
{[%clk 0:01:12.9]} 0-1

[Event "*** Titled Tuesday Blitz"]
[Site "Chess.com"]
[Date "2018.07.03"]
[Round "5"]
[White "Zaven_ChessMood"]
[Black "MikaelyanArman"]
[Result "1-0"]
[WhiteElo "2878"]
[BlackElo "2611"]
[TimeControl "180+2"]
[EndTime "14:04:17 PDT"]
[Termination "Zaven_ChessMood won on time"]

1. e4 {[%clk 0:03:01.9]} 1... Nf6 {[%clk 0:03:00.5]} 2. e5 {[%clk 0:03:01.6]}
2... Nd5 {[%clk 0:03:01.5]} 3. c4 {[%clk 0:03:03.2]} 3... Nb6 {[%clk 0:03:02.2]}
4. d4 {[%clk 0:03:01.9]} 4... d6 {[%clk 0:03:03.5]} 5. f4 {[%clk 0:03:03.2]}
5... dxe5 {[%clk 0:03:03.5]} 6. fxe5 {[%clk 0:03:04.2]} 6... Nc6 {[%clk
0:03:04.4]} 7. Be3 {[%clk 0:03:05.1]} 7... Bf5 {[%clk 0:03:05.4]} 8. Nc3 {[%clk
0:03:06]} 8... e6 {[%clk 0:03:05.9]} 9. Nf3 {[%clk 0:03:06.8]} 9... Be7 {[%clk
0:03:07]} 10. Be2 {[%clk 0:03:07.4]} 10... O-O {[%clk 0:03:07.4]} 11. O-O {[%clk
0:03:08.5]} 11... f6 {[%clk 0:03:08.7]} 12. Qe1 {[%clk 0:03:07.6]} 12... fxe5
{[%clk 0:03:05.5]} 13. dxe5 {[%clk 0:03:08.2]} 13... Bg4 {[%clk 0:02:46.1]} 14.
Qg3 {[%clk 0:03:04.2]} 14... Bxf3 {[%clk 0:02:43.5]} 15. gxf3 {[%clk 0:03:05.2]}
15... Nd4 {[%clk 0:02:24]} 16. Rad1 {[%clk 0:03:03.6]} 16... Nxe2+ {[%clk
0:02:15.6]} 17. Nxe2 {[%clk 0:03:04.5]} 17... Qe8 {[%clk 0:02:16.2]} 18. b3
{[%clk 0:03:04.5]} 18... Nd7 {[%clk 0:02:03.7]} 19. Kh1 {[%clk 0:03:00.5]} 19...
Rd8 {[%clk 0:01:55.6]} 20. Nf4 {[%clk 0:02:57.2]} 20... Qf7 {[%clk 0:01:43.3]}
21. Rg1 {[%clk 0:02:49.8]} 21... g6 {[%clk 0:01:27.7]} 22. Qg4 {[%clk
0:02:47.3]} 22... Nxe5 {[%clk 0:01:17.9]} 23. Qxe6 {[%clk 0:02:47.6]} 23... Qxe6
{[%clk 0:00:58.1]} 24. Nxe6 {[%clk 0:02:46.6]} 24... Rxd1 {[%clk 0:00:59.5]} 25.
Rxd1 {[%clk 0:02:47]} 25... Rxf3 {[%clk 0:01:00.9]} 26. Bxa7 {[%clk 0:02:47.5]}
26... c6 {[%clk 0:00:51.4]} 27. Kg2 {[%clk 0:02:46.7]} 27... Rd3 {[%clk
0:00:50.3]} 28. Rxd3 {[%clk 0:02:40.5]} 28... Nxd3 {[%clk 0:00:52.2]} 29. Be3
{[%clk 0:02:35.8]} 29... Kf7 {[%clk 0:00:52.3]} 30. Nd4 {[%clk 0:02:36.7]} 30...
Bc5 {[%clk 0:00:50.2]} 31. Kf3 {[%clk 0:02:37.4]} 31... Bxd4 {[%clk 0:00:47.1]}
32. Bxd4 {[%clk 0:02:38.2]} 32... Nc1 {[%clk 0:00:48.3]} 33. Be3 {[%clk
0:02:28.2]} 33... Nxa2 {[%clk 0:00:49]} 34. Bd2 {[%clk 0:02:28.6]} 34... Ke6
{[%clk 0:00:49.5]} 35. b4 {[%clk 0:02:20.8]} 35... b6 {[%clk 0:00:50.5]} 36. Ke4
{[%clk 0:02:19.5]} 36... c5 {[%clk 0:00:48.9]} 37. b5 {[%clk 0:02:20.4]} 37...
Nb4 {[%clk 0:00:43.9]} 38. Bg5 {[%clk 0:02:16.9]} 38... Kd7 {[%clk 0:00:41]} 39.
Bf6 {[%clk 0:02:11.8]} 39... Nc2 {[%clk 0:00:38.7]} 40. h4 {[%clk 0:02:12.7]}
40... h6 {[%clk 0:00:35.6]} 41. Bg7 {[%clk 0:02:13.4]} 41... h5 {[%clk
0:00:32.9]} 42. Bf6 {[%clk 0:02:14.5]} 42... Ne1 {[%clk 0:00:24.2]} 43. Bg5
{[%clk 0:02:13.6]} 43... Nc2 {[%clk 0:00:22]} 44. Bf6 {[%clk 0:02:14.5]} 44...
Ne1 {[%clk 0:00:17.6]} 45. Ke3 {[%clk 0:02:14.6]} 45... Nc2+ {[%clk 0:00:14.7]}
46. Kf4 {[%clk 0:02:15.8]} 46... Na3 {[%clk 0:00:12.8]} 47. Kg5 {[%clk
0:02:16.1]} 47... Nxc4 {[%clk 0:00:13.8]} 48. Kxg6 {[%clk 0:02:17.7]} 48... Ke6
{[%clk 0:00:14.1]} 49. Bd8 {[%clk 0:02:18.8]} 49... Nd6 {[%clk 0:00:12.7]} 50.
Bxb6 {[%clk 0:02:19.3]} 50... c4 {[%clk 0:00:14.1]} 51. Kxh5 {[%clk 0:02:18.7]}
51... Nxb5 {[%clk 0:00:13.5]} 52. Kg6 {[%clk 0:02:19.8]} 52... c3 {[%clk
0:00:14.7]} 53. h5 {[%clk 0:02:20.5]} 53... c2 {[%clk 0:00:15.9]} 54. Be3 {[%clk
0:02:22]} 54... Nd6 {[%clk 0:00:16.7]} 55. Bc1 {[%clk 0:02:14.9]} 55... Nf5
{[%clk 0:00:16.1]} 56. Bb2 {[%clk 0:02:12.7]} 56... Nd6 {[%clk 0:00:14.2]} 57.
h6 {[%clk 0:02:13.2]} 57... Nf7 {[%clk 0:00:14.3]} 58. h7 {[%clk 0:02:14.2]}
58... Nh8+ {[%clk 0:00:15.2]} 59. Kg7 {[%clk 0:02:14.2]} 59... Nf7 {[%clk
0:00:16.4]} 60. Ba3 {[%clk 0:02:14.8]} 60... Nh8 {[%clk 0:00:07.3]} 61. Kxh8
{[%clk 0:02:10.2]} 61... Kf7 {[%clk 0:00:08.4]} 62. Bc1 {[%clk 0:02:07.4]} 62...
Kf8 {[%clk 0:00:08.8]} 63. Bb2 {[%clk 0:02:08.5]} 63... Ke7 {[%clk 0:00:05.6]}
64. Kg7 {[%clk 0:02:08.7]} 1-0

[Event "*** Titled Tuesday Blitz"]
[Site "Chess.com"]
[Date "2018.07.03"]
[Round "5"]
[White "Bad4life"]
[Black "Kaphrep"]
[Result "0-1"]
[WhiteElo "2427"]
[BlackElo "2670"]
[TimeControl "180+2"]
[EndTime "14:04:19 PDT"]
[Termination "Kaphrep won by checkmate"]

1. e4 {[%clk 0:02:44.9]} 1... g6 {[%clk 0:02:59.5]} 2. d4 {[%clk 0:02:45.5]}
2... Bg7 {[%clk 0:03:00.8]} 3. Nf3 {[%clk 0:02:43.6]} 3... e6 {[%clk 0:02:58.8]}
4. Bd3 {[%clk 0:02:42.6]} 4... Ne7 {[%clk 0:02:59.3]} 5. O-O {[%clk 0:02:42.7]}
5... d6 {[%clk 0:03:00.4]} 6. c3 {[%clk 0:02:43.1]} 6... h6 {[%clk 0:03:01.2]}
7. a4 {[%clk 0:02:44.4]} 7... Nd7 {[%clk 0:02:59.7]} 8. Re1 {[%clk 0:02:45.8]}
8... a6 {[%clk 0:02:49.7]} 9. a5 {[%clk 0:02:43.2]} 9... b5 {[%clk 0:02:50.3]}
10. axb6 {[%clk 0:02:43.7]} 10... cxb6 {[%clk 0:02:52.2]} 11. Na3 {[%clk
0:02:43.2]} 11... Bb7 {[%clk 0:02:44.9]} 12. Nc4 {[%clk 0:02:43]} 12... Nc8
{[%clk 0:02:46]} 13. Bf4 {[%clk 0:02:32.1]} 13... Qe7 {[%clk 0:02:46.6]} 14. d5
{[%clk 0:02:17.6]} 14... e5 {[%clk 0:02:44.2]} 15. Bg3 {[%clk 0:02:10.4]} 15...
O-O {[%clk 0:02:40]} 16. Bh4 {[%clk 0:01:58.7]} 16... Bf6 {[%clk 0:02:17.7]} 17.
g3 {[%clk 0:01:53.2]} 17... g5 {[%clk 0:02:09.5]} 18. Ne3 {[%clk 0:01:48.6]}
18... Bg7 {[%clk 0:01:43.6]} 19. Nf5 {[%clk 0:01:47.7]} 19... Qf6 {[%clk
0:01:43.5]} 20. c4 {[%clk 0:01:26.6]} 20... Ne7 {[%clk 0:01:35]} 21. Ne3 {[%clk
0:00:47]} 21... gxh4 {[%clk 0:01:21.6]} 22. Ng4 {[%clk 0:00:37.9]} 22... Qg6
{[%clk 0:01:22.5]} 23. Nxh4 {[%clk 0:00:38.6]} 23... Qg5 {[%clk 0:00:58.5]} 24.
Ra3 {[%clk 0:00:20.7]} 24... h5 {[%clk 0:00:41.2]} 25. Ne3 {[%clk 0:00:18.2]}
25... Bh6 {[%clk 0:00:22.8]} 26. Kh1 {[%clk 0:00:18.8]} 26... Kh8 {[%clk
0:00:21.8]} 27. Be2 {[%clk 0:00:19.3]} 27... Nf6 {[%clk 0:00:21.9]} 28. Bf3
{[%clk 0:00:16]} 28... Bc8 {[%clk 0:00:20.8]} 29. Rb3 {[%clk 0:00:14.7]} 29...
Rb8 {[%clk 0:00:20.7]} 30. c5 {[%clk 0:00:15.2]} 30... dxc5 {[%clk 0:00:18.4]}
31. Nc4 {[%clk 0:00:15]} 31... Bg4 {[%clk 0:00:15.1]} 32. Nd6 {[%clk 0:00:11.8]}
32... Kg8 {[%clk 0:00:13.5]} 33. Rg1 {[%clk 0:00:07.4]} 33... Rfd8 {[%clk
0:00:13.7]} 34. Bxg4 {[%clk 0:00:04.6]} 34... Nxg4 {[%clk 0:00:12.8]} 35. Qf3
{[%clk 0:00:02.8]} 35... Rxd6 {[%clk 0:00:11.5]} 36. Nf5 {[%clk 0:00:04.1]}
36... Nxf5 {[%clk 0:00:12.3]} 37. exf5 {[%clk 0:00:05.5]} 37... e4 {[%clk
0:00:12.2]} 38. Qe2 {[%clk 0:00:05.6]} 38... Qxf5 {[%clk 0:00:13.1]} 39. Rg2
{[%clk 0:00:05.8]} 39... Qxd5 {[%clk 0:00:12.3]} 40. h3 {[%clk 0:00:03.5]} 40...
Qxb3 {[%clk 0:00:10.8]} 41. hxg4 {[%clk 0:00:04.5]} 41... Qd1+ {[%clk
0:00:11.7]} 42. Qxd1 {[%clk 0:00:05.1]} 42... Rxd1+ {[%clk 0:00:13.6]} 43. Kh2
{[%clk 0:00:06.7]} 43... hxg4 {[%clk 0:00:14.5]} 44. b4 {[%clk 0:00:07.7]} 44...
Bg5 {[%clk 0:00:15.3]} 45. bxc5 {[%clk 0:00:08.5]} 45... Kg7 {[%clk 0:00:16.5]}
46. Rg1 {[%clk 0:00:07.8]} 46... Rd2 {[%clk 0:00:16.2]} 47. Kg2 {[%clk
0:00:08.5]} 47... e3 {[%clk 0:00:17.5]} 48. cxb6 {[%clk 0:00:09.4]} 48... Rxf2+
{[%clk 0:00:18.3]} 49. Kh1 {[%clk 0:00:10.9]} 49... Rh8# {[%clk 0:00:20.1]} 0-1

[Event "*** Titled Tuesday Blitz"]
[Site "Chess.com"]
[Date "2018.07.03"]
[Round "5"]
[White "dreamist"]
[Black "Parhamov"]
[Result "0-1"]
[WhiteElo "2597"]
[BlackElo "2768"]
[TimeControl "180+2"]
[EndTime "14:04:24 PDT"]
[Termination "Parhamov won by resignation"]

1. c4 {[%clk 0:02:54.7]} 1... e5 {[%clk 0:03:00.4]} 2. Nc3 {[%clk 0:02:55.3]}
2... Nf6 {[%clk 0:03:00.5]} 3. Nf3 {[%clk 0:02:55.6]} 3... Nc6 {[%clk 0:03:01]}
4. Qc2 {[%clk 0:02:56.4]} 4... Bb4 {[%clk 0:03:01.5]} 5. Nd5 {[%clk 0:02:56.4]}
5... Be7 {[%clk 0:02:52.2]} 6. e3 {[%clk 0:02:54.3]} 6... O-O {[%clk 0:02:47.5]}
7. a3 {[%clk 0:02:54.1]} 7... a5 {[%clk 0:02:47.7]} 8. Bd3 {[%clk 0:02:51.4]}
8... h6 {[%clk 0:02:47.8]} 9. b3 {[%clk 0:02:50.7]} 9... Re8 {[%clk 0:02:47.5]}
10. Bb2 {[%clk 0:02:49.2]} 10... d6 {[%clk 0:02:47.1]} 11. Nxf6+ {[%clk
0:02:48.9]} 11... Bxf6 {[%clk 0:02:48]} 12. Be4 {[%clk 0:02:49.8]} 12... Ne7
{[%clk 0:02:46.3]} 13. O-O {[%clk 0:02:45.9]} 13... c6 {[%clk 0:02:46.7]} 14. d4
{[%clk 0:02:41.2]} 14... exd4 {[%clk 0:02:47.3]} 15. Bxd4 {[%clk 0:02:39.1]}
15... Bxd4 {[%clk 0:02:43]} 16. Nxd4 {[%clk 0:02:39.8]} 16... Bd7 {[%clk
0:02:25.4]} 17. Rfd1 {[%clk 0:02:35.6]} 17... Qc7 {[%clk 0:02:26.5]} 18. h3
{[%clk 0:02:14.6]} 18... Red8 {[%clk 0:02:26.7]} 19. Rd2 {[%clk 0:02:10.3]}
19... Kf8 {[%clk 0:02:27]} 20. Rad1 {[%clk 0:02:05.8]} 20... Ng8 {[%clk
0:02:26.4]} 21. Bf5 {[%clk 0:01:57.7]} 21... Nf6 {[%clk 0:02:27.2]} 22. Bxd7
{[%clk 0:01:56.7]} 22... Rxd7 {[%clk 0:02:28.6]} 23. Nf5 {[%clk 0:01:56.9]}
23... Rad8 {[%clk 0:02:29.5]} 24. Qc3 {[%clk 0:01:54.5]} 24... Ne8 {[%clk
0:01:56.2]} 25. Qd4 {[%clk 0:01:39.6]} 25... Kg8 {[%clk 0:01:54.8]} 26. Qg4
{[%clk 0:01:35.9]} 26... Kh7 {[%clk 0:01:55.4]} 27. Rd4 {[%clk 0:01:25.5]} 27...
d5 {[%clk 0:01:45.9]} 28. cxd5 {[%clk 0:00:42.5]} 28... Rxd5 {[%clk 0:01:46.5]}
29. Rxd5 {[%clk 0:00:42.8]} 29... Rxd5 {[%clk 0:01:47.1]} 30. Rxd5 {[%clk
0:00:43.3]} 30... cxd5 {[%clk 0:01:48.2]} 31. Qd4 {[%clk 0:00:43.5]} 31... g6
{[%clk 0:01:49.3]} 32. Nxh6 {[%clk 0:00:35.5]} 32... f5 {[%clk 0:01:39.9]} 33.
g4 {[%clk 0:00:30.3]} 33... Ng7 {[%clk 0:01:37.6]} 34. g5 {[%clk 0:00:25.2]}
34... Qe7 {[%clk 0:01:27.7]} 35. h4 {[%clk 0:00:22.8]} 35... Qxa3 {[%clk
0:01:21.8]} 36. Qxd5 {[%clk 0:00:22.8]} 36... Qc1+ {[%clk 0:01:19.5]} 37. Kh2
{[%clk 0:00:20.1]} 37... Qc7+ {[%clk 0:01:20.1]} 38. f4 {[%clk 0:00:16.9]} 38...
Qc8 {[%clk 0:01:14.8]} 39. Kh3 {[%clk 0:00:10.3]} 39... Qe8 {[%clk 0:01:13]} 40.
Kg2 {[%clk 0:00:09.2]} 40... b5 {[%clk 0:01:08.7]} 41. Kf3 {[%clk 0:00:09.5]}
41... a4 {[%clk 0:01:09.6]} 42. bxa4 {[%clk 0:00:10.5]} 42... bxa4 {[%clk
0:01:11.5]} 43. Qa2 {[%clk 0:00:10.7]} 43... Qe4+ {[%clk 0:01:06.4]} 44. Kf2
{[%clk 0:00:11.5]} 44... Ne6 {[%clk 0:01:04.2]} 45. Qb2 {[%clk 0:00:10.2]} 45...
Nc5 {[%clk 0:00:57.3]} 46. Qb8 {[%clk 0:00:09.9]} 46... Nd3+ {[%clk 0:00:55.3]}
47. Ke2 {[%clk 0:00:10.1]} 47... Nxf4+ {[%clk 0:00:56.6]} 48. Kd1 {[%clk
0:00:03.5]} 48... Qd3+ {[%clk 0:00:56.7]} 49. Kc1 {[%clk 0:00:04.5]} 49... Qxe3+
{[%clk 0:00:57.9]} 50. Kb1 {[%clk 0:00:05.3]} 50... Qe1+ {[%clk 0:00:51.9]} 51.
Ka2 {[%clk 0:00:06.1]} 51... Qd2+ {[%clk 0:00:53]} 52. Ka3 {[%clk 0:00:06.9]}
52... Qc3+ {[%clk 0:00:54]} 53. Kxa4 {[%clk 0:00:08]} 53... Qa1+ {[%clk
0:00:55]} 0-1

[Event "*** Titled Tuesday Blitz"]
[Site "Chess.com"]
[Date "2018.07.03"]
[Round "5"]
[White "tgpgoat"]
[Black "HanSchut"]
[Result "0-1"]
[WhiteElo "1970"]
[BlackElo "2270"]
[TimeControl "180+2"]
[EndTime "14:04:27 PDT"]
[Termination "HanSchut won by checkmate"]

1. e4 {[%clk 0:03:01.9]} 1... c5 {[%clk 0:03:00.2]} 2. Nf3 {[%clk 0:03:01.8]}
2... d6 {[%clk 0:03:01.4]} 3. d4 {[%clk 0:02:39.3]} 3... cxd4 {[%clk 0:03:03.3]}
4. Nxd4 {[%clk 0:02:39.1]} 4... Nf6 {[%clk 0:03:04.3]} 5. Nc3 {[%clk 0:02:39.7]}
5... a6 {[%clk 0:03:05.6]} 6. Be3 {[%clk 0:02:39.8]} 6... e5 {[%clk 0:03:06.6]}
7. Nb3 {[%clk 0:02:07.3]} 7... Be6 {[%clk 0:03:05.8]} 8. f3 {[%clk 0:02:08.6]}
8... Be7 {[%clk 0:03:05.6]} 9. Qd2 {[%clk 0:02:04.9]} 9... O-O {[%clk
0:03:06.6]} 10. O-O-O {[%clk 0:01:55.7]} 10... Nbd7 {[%clk 0:03:07.9]} 11. g4
{[%clk 0:01:56.1]} 11... b5 {[%clk 0:03:08]} 12. Bg5 {[%clk 0:01:48.8]} 12... b4
{[%clk 0:03:06.5]} 13. Ne2 {[%clk 0:01:48.8]} 13... Nxe4 {[%clk 0:02:56.1]} 14.
Bxe7 {[%clk 0:01:39.7]} 14... Nxd2 {[%clk 0:02:56.2]} 15. Bxd8 {[%clk 0:01:41]}
15... Nxb3+ {[%clk 0:02:54.7]} 16. axb3 {[%clk 0:01:41.7]} 16... Rfxd8 {[%clk
0:02:51.3]} 17. Rxd6 {[%clk 0:01:42.7]} 17... Nc5 {[%clk 0:02:42.3]} 18. Rxd8+
{[%clk 0:01:34.9]} 18... Rxd8 {[%clk 0:02:44.2]} 19. Ng3 {[%clk 0:01:35.8]}
19... Rc8 {[%clk 0:02:37.9]} 20. Kb1 {[%clk 0:01:35.1]} 20... Bd5 {[%clk
0:02:33.1]} 21. Bg2 {[%clk 0:01:29.1]} 21... Ne6 {[%clk 0:02:28.6]} 22. Re1
{[%clk 0:01:25.7]} 22... f6 {[%clk 0:02:26.1]} 23. Ne2 {[%clk 0:01:24.6]} 23...
Kf7 {[%clk 0:02:12.8]} 24. Rd1 {[%clk 0:01:23.6]} 24... Rc5 {[%clk 0:02:09.7]}
25. Bh1 {[%clk 0:01:18.5]} 25... g5 {[%clk 0:02:06.3]} 26. Ng3 {[%clk
0:01:17.4]} 26... Nd4 {[%clk 0:01:58]} 27. Rd3 {[%clk 0:00:55.4]} 27... Bc6
{[%clk 0:01:38.6]} 28. Nf5 {[%clk 0:00:15.9]} 28... Nxf5 {[%clk 0:01:34.4]} 29.
gxf5 {[%clk 0:00:16.3]} 29... Ke7 {[%clk 0:01:34.5]} 30. Bg2 {[%clk 0:00:16.9]}
30... Bd7 {[%clk 0:01:32.2]} 31. Bh3 {[%clk 0:00:17.4]} 31... h5 {[%clk
0:01:25.1]} 32. c3 {[%clk 0:00:12.9]} 32... Bc6 {[%clk 0:01:13.9]} 33. cxb4
{[%clk 0:00:12.7]} 33... Rd5 {[%clk 0:01:09.1]} 34. Rxd5 {[%clk 0:00:12.9]}
34... Bxd5 {[%clk 0:01:10.1]} 35. Bf1 {[%clk 0:00:12.9]} 35... Bxf3 {[%clk
0:01:07.4]} 36. Bxa6 {[%clk 0:00:13.5]} 36... Be4+ {[%clk 0:01:08.9]} 37. Kc1
{[%clk 0:00:13.8]} 37... Bxf5 {[%clk 0:01:10.1]} 38. b5 {[%clk 0:00:15.2]} 38...
Kd6 {[%clk 0:01:08.2]} 39. Bb7 {[%clk 0:00:14.3]} 39... Kc5 {[%clk 0:01:05.5]}
40. Bc6 {[%clk 0:00:14.1]} 40... Bd3 {[%clk 0:01:03.9]} 41. Be8 {[%clk
0:00:13.7]} 41... h4 {[%clk 0:01:04]} 42. Kd2 {[%clk 0:00:13.6]} 42... Bxb5
{[%clk 0:01:02.9]} 43. Bf7 {[%clk 0:00:14.4]} 43... Bd7 {[%clk 0:01:00.3]} 44.
Ke3 {[%clk 0:00:15.1]} 44... f5 {[%clk 0:01:01.5]} 45. Bg6 {[%clk 0:00:15.9]}
45... Kb4 {[%clk 0:00:58.6]} 46. Bf7 {[%clk 0:00:16.7]} 46... Bc6 {[%clk
0:00:57.7]} 47. Bg8 {[%clk 0:00:17.5]} 47... f4+ {[%clk 0:00:58.7]} 48. Kf2
{[%clk 0:00:17.7]} 48... g4 {[%clk 0:00:58.5]} 49. Be6 {[%clk 0:00:17.7]} 49...
g3+ {[%clk 0:00:59.5]} 50. hxg3 {[%clk 0:00:17.2]} 50... hxg3+ {[%clk
0:01:01.3]} 51. Kg1 {[%clk 0:00:17.8]} 51... e4 {[%clk 0:01:00.1]} 52. Kf1
{[%clk 0:00:17.8]} 52... e3 {[%clk 0:01:00.3]} 53. Bc4 {[%clk 0:00:18.5]} 53...
f3 {[%clk 0:01:00.6]} 54. Kg1 {[%clk 0:00:17.5]} 54... g2 {[%clk 0:01:00.6]} 55.
Kh2 {[%clk 0:00:15.9]} 55... f2 {[%clk 0:01:00.9]} 56. Bd5 {[%clk 0:00:16.7]}
56... g1=Q+ {[%clk 0:01:00.7]} 57. Kh3 {[%clk 0:00:17.2]} 57... f1=Q+ {[%clk
0:00:57.7]} 58. Kh4 {[%clk 0:00:18]} 58... Qf4+ {[%clk 0:00:57.5]} 59. Kh3
{[%clk 0:00:17.4]} 59... Qgg3# {[%clk 0:00:57.8]} 0-1